fUSD/lending_fUSD_20240122
["ID","MTS","AMOUNT","RATE_DAILY","PERIOD"]
[312508608,1705935327245,-2108.57,0.0005726,120]
[312508609,1705935327278,-5534.47,0.0005726,120]
[312508610,1705935327311,-2822.45,0.0005726,120]
[312508611,1705935327343,-1147.57,0.0005726,120]
[312508612,1705935327376,-1151.76,0.0005726,120]
[312508613,1705935327408,-504.79,0.0005726,120]
[312508614,1705935327440,-828.94,0.0005726,120]
[312508615,1705935327472,-1921.76,0.0005726,120]
[312508616,1705935327504,-500.0,0.0005726,120]
[312508617,1705935327535,-517.22,0.0005726,120]
[312508618,1705935327566,-836.23,0.0005726,120]
[312508619,1705935327598,-859.23,0.0005726,120]
[312508620,1705935327631,-2987.07,0.0005726,120]
[312508621,1705935327661,-500.0,0.0005726,120]
[312508622,1705935327693,-1485.29,0.0005726,120]
[312508623,1705935327725,-699.12,0.0005726,120]
[312508624,1705935327758,-500.0,0.0005726,120]
[312508625,1705935327789,-1113.39,0.0005726,120]
[312508626,1705935327820,-610.32,0.0005726,120]
[312508627,1705935327853,-1325.84,0.0005726,120]
[312508628,1705935327885,-500.0,0.0005726,120]
[312508629,1705935327917,-500.0,0.0005726,120]
[312508630,1705935327948,-977.5,0.0005726,120]
[312508631,1705935327979,-1197.96,0.0005726,120]
[312508632,1705935328011,-680.84,0.0005726,120]
[312508633,1705935328043,-1447.9,0.0005726,120]
[312508634,1705935328075,-768.63,0.0005726,120]
[312508635,1705935328109,-6620.65,0.0005726,120]
[312508636,1705935328141,-4857.5,0.0005726,120]
[312508637,1705935328172,-500.0,0.0005726,120]
[312508638,1705935328204,-500.0,0.0005726,120]
[312508639,1705935328237,-2086.5,0.0005726,120]
[312508640,1705935328270,-1199.49,0.0005726,120]
[312508641,1705935328303,-2054.67,0.0005726,120]
[312508642,1705935328338,-500.0,0.0005726,120]
[312508643,1705935328378,-500.0,0.0005726,120]
[312508644,1705935328416,-500.0,0.0005726,120]
[312508645,1705935328453,-519.19,0.0005726,120]
[312508646,1705935328489,-571.24527479,0.0005726,120]
[312508647,1705935328524,-886.41,0.0005726,120]
[312508648,1705935328557,-500.0,0.0005726,120]
[312508649,1705935328592,-10248.86,0.0005726,120]
[312508650,1705935328627,-1103.75,0.0005726,120]
[312508651,1705935328661,-500.0,0.0005726,120]
[312508652,1705935328695,-751.87,0.0005726,120]
[312508653,1705935328728,-3237.18,0.0005726,120]
[312508654,1705935328761,-2009.92,0.0005726,120]
[312508655,1705935328793,-789.59,0.0005726,120]
[312508656,1705935328827,-685.82,0.0005726,120]
[312508657,1705935328860,-500.0,0.0005726,120]
[312508658,1705935328893,-4264.33,0.0005726,120]
[312508659,1705935328925,-1535.34,0.0005726,120]
[312508660,1705935328958,-809.7,0.0005726,120]
[312508661,1705935328991,-1154.09,0.0005726,120]
[312508662,1705935329027,-1697.89,0.0005726,120]
[312508663,1705935329060,-1596.19,0.0005726,120]
[312508664,1705935329094,-964.24,0.0005726,120]
[312508665,1705935329131,-1154.51,0.0005726,120]
[312508666,1705935329168,-1595.7,0.0005726,120]
[312508667,1705935329221,-500.0,0.0005726,120]
[312508668,1705935329258,-2914.21,0.0005726,120]
[312508669,1705935329292,-1552.88,0.0005726,120]
[312508670,1705935329326,-608.04,0.0005726,120]
[312508671,1705935329360,-980.8,0.0005726,120]
[312508672,1705935329395,-700.43,0.0005726,120]
[312508673,1705935329430,-696.01,0.0005726,120]
[312508674,1705935329465,-1757.28,0.0005726,120]
[312508675,1705935329502,-665.51,0.0005726,120]
[312508676,1705935329535,-1171.38,0.0005726,120]
[312508677,1705935329568,-1708.66,0.0005726,120]
[312508678,1705935329601,-559.65,0.0005726,120]
[312508679,1705935329635,-1273.88,0.0005726,120]
[312508680,1705935329668,-536.79,0.0005726,120]
[312508683,1705935329702,-520.77,0.0005726,120]
[312508684,1705935329734,-1047.69,0.0005726,120]
[312508685,1705935329768,-1774.41,0.0005726,120]
[312508686,1705935329800,-714.84,0.0005726,120]
[312508687,1705935329835,-1003.68,0.0005726,120]
[312508688,1705935329871,-1882.22,0.0005726,120]
[312508689,1705935329906,-2030.56,0.0005726,120]
[312508690,1705935329941,-500.0,0.0005726,120]
[312508691,1705935329979,-1118.09,0.0005726,120]
[312508692,1705935330014,-1661.46,0.0005726,120]
[312508693,1705935330049,-2145.54,0.0005726,120]
[312508694,1705935330085,-500.0,0.0005726,120]
[312508695,1705935330120,-400.0,0.0005726,120]
[312508696,1705935330159,-150.40437152,0.00057331,72]
[312508697,1705935330194,-150.0,0.0005734,60]
[312508698,1705935330229,-200.0,0.00057409,120]
[312508699,1705935330264,-179.94328232,0.0005749,42]
[312508700,1705935330300,-200.0,0.00057533,120]
[312508701,1705935330333,-300.0,0.00057534,120]
[312508702,1705935330366,-300.0,0.00057534,120]
[312508703,1705935330400,-500.0,0.00057534,120]
[312508704,1705935330434,-1049.91961675,0.00057534,45]
[312508705,1705935330467,-500.0,0.00057534,120]
[312508706,1705935330501,-500.0,0.00057534,120]
[312508707,1705935330535,-500.0,0.00057534,120]
[312508708,1705935330830,-500.0,0.00057534,120]
[312508709,1705935330866,-559.06,0.00057534,120]
[312508710,1705935330898,-500.0,0.00057534,120]
[312508711,1705935330931,-500.0,0.00057534,120]
[312508712,1705935330965,-500.0,0.00057534,120]
[312508713,1705935330999,-500.0,0.00057534,120]
[312508714,1705935331031,-500.0,0.00057534,120]
[312508715,1705935331063,-500.0,0.00057534,120]
[312508716,1705935331096,-500.0,0.00057534,120]
[312508717,1705935331130,-500.0,0.00057534,120]
[312508718,1705935331162,-500.0,0.00057534,120]
[312508719,1705935331194,-500.0,0.00057534,120]
[312508720,1705935331226,-500.0,0.00057534,120]
[312508721,1705935331258,-626.59,0.00057534,120]
[312508722,1705935331297,-500.0,0.00057534,120]
[312508723,1705935331329,-500.0,0.00057534,120]
[312508724,1705935331362,-500.0,0.00057534,120]
[312508725,1705935331395,-500.0,0.00057534,120]
[312508726,1705935331428,-711.06,0.00057534,120]
[312508727,1705935331462,-714.27,0.00057534,120]
[312508728,1705935331497,-918.11,0.00057534,120]
[312508729,1705935331530,-500.0,0.00057534,120]
[312508730,1705935331562,-687.84,0.00057534,120]
[312508731,1705935331594,-500.0,0.00057534,120]
[312508732,1705935331624,-587.61,0.00057534,120]
[312508733,1705935331656,-500.0,0.00057534,120]
[312508734,1705935331687,-882.35,0.00057534,120]
[312508735,1705935331719,-831.94,0.00057534,120]
[312508736,1705935331751,-1066.83,0.00057534,120]
[312508737,1705935331783,-506.4,0.00057534,120]
[312508738,1705935331814,-500.0,0.00057534,120]
[312508739,1705935331861,-500.0,0.00057534,120]
[312508740,1705935331898,-692.09,0.00057534,120]
[312508741,1705935331932,-1946.0,0.00057534,45]
[312508742,1705935331970,-500.0,0.00057534,120]
[312508743,1705935332007,-500.0,0.00057534,120]
[312508744,1705935332044,-548.63,0.00057534,120]
[312508745,1705935332080,-726.93,0.00057534,120]
[312508746,1705935332118,-500.0,0.00057534,120]
[312508747,1705935332155,-801.5,0.00057534,120]
[312508748,1705935332191,-533.44,0.00057534,120]
[312508749,1705935332228,-500.0,0.00057534,120]
[312508750,1705935332264,-500.0,0.00057534,120]
[312508751,1705935332299,-522.37282339,0.00057534,120]
[312508752,1705935332333,-500.0,0.00057534,120]
[312508753,1705935332367,-517.9,0.00057534,120]
[312508754,1705935332401,-500.0,0.00057534,120]
[312508755,1705935332434,-500.0,0.00057534,120]
[312508756,1705935332470,-500.0,0.00057534,120]
[312508757,1705935332503,-500.0,0.00057534,120]
[312508758,1705935332538,-539.03,0.00057534,120]
[312508759,1705935332571,-277.33492969,0.00057534,120]
[312508760,1705935332604,-500.0,0.00057534,120]
[312508761,1705935332642,-541.94,0.00057534,120]
[312508762,1705935332677,-628.32,0.00057534,120]
[312508763,1705935332711,-1064.71,0.00057534,120]
[312508764,1705935332745,-500.0,0.00057534,120]
[312508765,1705935332778,-500.0,0.00057534,120]
[312508766,1705935332810,-500.0,0.00057534,120]
[312508767,1705935332844,-500.0,0.00057534,120]
[312508768,1705935332877,-500.0,0.00057534,120]
[312508769,1705935332910,-688.57,0.00057534,120]
[312508770,1705935332943,-515.35,0.00057534,120]
[312508771,1705935332978,-500.0,0.00057534,120]
[312508772,1705935333014,-532.26,0.00057534,120]
[312508773,1705935333049,-500.0,0.00057534,120]
[312508774,1705935333082,-429.58,0.00057534,120]
[312508775,1705935333117,-511.93,0.00057534,120]
[312508776,1705935333150,-852.71,0.00057534,120]
[312508777,1705935333184,-500.0,0.00057534,120]
[312508778,1705935333221,-500.0,0.00057534,120]
[312508779,1705935333256,-500.0,0.00057534,120]
[312508780,1705935333292,-749.91,0.00057534,120]
[312508781,1705935333326,-500.0,0.00057534,120]
[312508782,1705935333365,-500.0,0.00057534,120]
[312508783,1705935333398,-500.0,0.00057534,120]
[312508784,1705935333436,-500.0,0.00057534,120]
[312508785,1705935333471,-706.74,0.00057534,120]
[312508786,1705935333506,-500.0,0.00057534,120]
[312508787,1705935333540,-500.0,0.00057534,120]
[312508788,1705935333575,-681.22,0.00057534,120]
[312508789,1705935333611,-500.0,0.00057534,120]
[312508790,1705935333645,-520.16,0.00057534,120]
[312508791,1705935333680,-978.9,0.00057534,120]
[312508792,1705935333714,-1380.88,0.00057534,120]
[312508793,1705935333749,-570.7,0.00057534,120]
[312508794,1705935333784,-500.0,0.00057534,120]
[312508795,1705935333818,-1255.4,0.00057534,120]
[312508796,1705935333851,-500.0,0.00057534,120]
[312508797,1705935333884,-1221.5,0.00057534,120]
[312508798,1705935333918,-1447.81,0.00057534,120]
[312508799,1705935333954,-500.0,0.00057534,120]
[312508800,1705935333988,-500.0,0.00057534,120]
[312508801,1705935334024,-172.1480659,0.00057534,120]
[312508802,1705935334060,-2684.03,0.00057534,120]
[312508803,1705935334097,-970.29,0.00057534,120]
[312508804,1705935334130,-1726.87,0.00057534,120]
[312508805,1705935334164,-709.57,0.00057534,120]
[312508806,1705935334197,-556.49,0.00057534,120]
[312508807,1705935334230,-500.0,0.00057534,120]
[312508808,1705935334263,-1387.83,0.00057534,120]
[312508809,1705935334295,-717.18,0.00057534,120]
[312508810,1705935334329,-1397.88,0.00057534,120]
[312508811,1705935334364,-610.22,0.00057534,120]
[312508812,1705935334642,-1037.49,0.00057534,120]
[312508813,1705935334676,-937.59,0.00057534,120]
[312508814,1705935334708,-500.0,0.00057534,120]
[312508815,1705935334740,-510.67,0.00057534,120]
[312508816,1705935334772,-721.94,0.00057534,120]
[312508817,1705935334805,-658.41,0.00057534,120]
[312508818,1705935334840,-500.0,0.00057534,120]
[312508819,1705935334874,-510.16888386,0.00057534,120]
[312508820,1705935334907,-1324.43,0.00057534,120]
[312508821,1705935334944,-1074.78,0.00057534,120]
[312508822,1705935334985,-854.08,0.00057534,120]
[312508823,1705935335025,-500.0,0.00057534,120]
[312508824,1705935335064,-669.07,0.00057534,120]
[312508825,1705935335101,-1043.64,0.00057534,120]
[312508826,1705935335137,-500.0,0.00057534,120]
[312508827,1705935335173,-1068.91,0.00057534,120]
[312508828,1705935335210,-1264.76,0.00057534,120]
[312508829,1705935335249,-537.28,0.00057534,120]
[312508830,1705935335284,-500.0,0.00057534,120]
[312508831,1705935335320,-738.6,0.00057534,120]
[312508832,1705935335356,-660.61,0.00057534,120]
[312508833,1705935335392,-500.0,0.00057534,120]
[312508834,1705935335427,-700.4,0.00057534,120]
[312508835,1705935335464,-500.0,0.00057534,120]
[312508836,1705935335500,-821.95,0.00057534,120]
[312508837,1705935335536,-648.78,0.00057534,120]
[312508838,1705935335570,-722.7,0.00057534,120]
[312508839,1705935335606,-1066.38,0.00057534,120]
[312508840,1705935335641,-2325.98,0.00057534,120]
[312508841,1705935335677,-500.0,0.00057534,120]
[312508842,1705935335713,-1073.56,0.00057534,120]
[312508843,1705935335753,-500.0,0.00057534,120]
[312508844,1705935335790,-972.0,0.00057534,120]
[312508845,1705935335827,-532.36,0.00057534,120]
[312508846,1705935335863,-500.0,0.00057534,120]
[312508847,1705935335898,-1793.95,0.00057534,120]
[312508848,1705935335930,-500.0,0.00057534,120]
[312508849,1705935335963,-500.0,0.00057534,120]
[312508850,1705935335998,-960.21,0.00057534,120]
[312508851,1705935336032,-500.0,0.00057534,120]
[312508852,1705935336068,-1245.11,0.00057534,120]
[312508853,1705935336104,-500.0,0.00057534,120]
[312508854,1705935336144,-1202.84,0.00057534,120]
[312508855,1705935336184,-500.0,0.00057534,120]
[312508856,1705935336222,-1089.12,0.00057534,120]
[312508857,1705935336265,-674.26,0.00057534,120]
[312508858,1705935336301,-500.0,0.00057534,120]
[312508859,1705935336334,-1148.71,0.00057534,120]
[312508860,1705935336369,-1121.58,0.00057534,120]
[312508861,1705935336401,-500.0,0.00057534,120]
[312508862,1705935336435,-782.17,0.00057534,120]
[312508863,1705935336470,-500.0,0.00057534,120]
[312508864,1705935336505,-1269.81,0.00057534,120]
[312508865,1705935336538,-1163.79,0.00057534,120]
[312508866,1705935336571,-755.55,0.00057534,120]
[312508867,1705935336603,-590.73,0.00057534,120]
[312508868,1705935336636,-500.0,0.00057534,120]
[312508869,1705935336668,-653.94,0.00057534,120]
[312508870,1705935336700,-500.0,0.00057534,120]
[312508871,1705935336732,-1082.1,0.00057534,120]
[312508872,1705935336765,-1119.29,0.00057534,120]
[312508873,1705935336796,-884.87,0.00057534,120]
[312508874,1705935336828,-590.44,0.00057534,120]
[312508875,1705935336859,-1021.29,0.00057534,120]
[312508876,1705935336890,-500.0,0.00057534,120]
[312508877,1705935336922,-557.86,0.00057534,120]
[312508878,1705935336956,-301.93129493,0.00057534,120]
[312508879,1705935337004,-922.84,0.00057534,120]
[312508880,1705935337042,-1360.93,0.00057534,120]
[312508881,1705935337079,-854.16,0.00057534,120]
[312508882,1705935337115,-500.0,0.00057534,120]
[312508883,1705935337149,-612.83,0.00057534,120]
[312508884,1705935337183,-500.0,0.00057534,120]
[312508885,1705935337218,-763.7,0.00057534,120]
[312508886,1705935337254,-862.53,0.00057534,120]
[312508887,1705935337287,-716.16,0.00057534,120]
[312508888,1705935337319,-709.99,0.00057534,120]
[312508889,1705935337353,-743.65,0.00057534,120]
[312508890,1705935337389,-500.0,0.00057534,120]
[312508891,1705935337422,-501.89,0.00057534,120]
[312508892,1705935337455,-765.86,0.00057534,120]
[312508893,1705935337488,-1960.91,0.00057534,120]
[312508894,1705935337521,-500.0,0.00057534,120]
[312508895,1705935337554,-864.85,0.00057534,120]
[312508896,1705935337586,-895.93,0.00057534,120]
[312508897,1705935337617,-375.02,0.00057534,120]
[312508898,1705935337651,-652.75,0.00057534,120]
[312508899,1705935337684,-1017.75,0.00057534,120]
[312508900,1705935337717,-718.71,0.00057534,120]
[312508901,1705935337751,-500.0,0.00057534,120]
[312508902,1705935337785,-950.95,0.00057534,120]
[312508903,1705935337818,-1166.26,0.00057534,120]
[312508904,1705935337852,-706.58,0.00057534,120]
[312508905,1705935337885,-1163.88,0.00057534,120]
[312508906,1705935337917,-500.0,0.00057534,120]
[312508907,1705935337950,-775.78,0.00057534,120]
[312508908,1705935337988,-500.0,0.00057534,120]
[312508909,1705935338023,-1841.93,0.00057534,120]
[312508910,1705935338057,-604.25,0.00057534,120]
[312508911,1705935338090,-507.42471766,0.00057534,120]
[312508912,1705935338122,-744.8,0.00057534,120]
[312508913,1705935338156,-500.0,0.00057534,120]
[312508914,1705935338192,-803.23,0.00057534,120]
[312508915,1705935338444,-560.38602813,0.00057534,120]
[312508916,1705935338515,-1391.49,0.00057534,120]
[312508917,1705935338549,-500.0,0.00057534,120]
[312508918,1705935338583,-743.79,0.00057534,120]
[312508919,1705935338616,-758.95,0.00057534,120]
[312508920,1705935338649,-805.81,0.00057534,120]
[312508921,1705935338683,-575.63,0.00057534,120]
[312508922,1705935338716,-500.0,0.00057534,120]
[312508923,1705935338753,-869.66,0.00057534,120]
[312508924,1705935338792,-500.0,0.00057534,120]
[312508925,1705935338833,-907.16,0.00057534,120]
[312508926,1705935338872,-789.34,0.00057534,120]
[312508927,1705935338912,-619.23,0.00057534,120]
[312508928,1705935338950,-1452.65,0.00057534,120]
[312508929,1705935338992,-696.15,0.00057534,120]
[312508930,1705935339031,-593.79,0.00057534,120]
[312508931,1705935339068,-500.0,0.00057534,120]
[312508932,1705935339102,-1334.13,0.00057534,120]
[312508933,1705935339136,-500.0,0.00057534,120]
[312508934,1705935339178,-836.62,0.00057534,120]
[312508935,1705935339214,-837.72,0.00057534,120]
[312508936,1705935339251,-623.18,0.00057534,120]
[312508937,1705935339285,-1323.21,0.00057534,120]
[312508938,1705935339319,-532.28099155,0.00057534,120]
[312508939,1705935339353,-557.03,0.00057534,120]
[312508940,1705935339389,-609.57,0.00057534,120]
[312508941,1705935339425,-1742.89,0.00057534,120]
[312508942,1705935339460,-951.02,0.00057534,120]
[312508943,1705935339495,-500.0,0.00057534,120]
[312508944,1705935339527,-500.0,0.00057534,120]
[312508945,1705935339561,-650.96,0.00057534,120]
[312508946,1705935339594,-762.89,0.00057534,120]
[312508947,1705935339628,-500.0,0.00057534,120]
[312508948,1705935339661,-659.39,0.00057534,120]
[312508949,1705935339694,-500.0,0.00057534,120]
[312508950,1705935339730,-500.0,0.00057534,120]
[312508951,1705935339763,-500.0,0.00057534,120]
[312508952,1705935339796,-651.75,0.00057534,120]
[312508953,1705935339830,-500.0,0.00057534,120]
[312508954,1705935339864,-500.0,0.00057534,120]
[312508955,1705935339897,-852.44,0.00057534,120]
[312508956,1705935339962,-500.0,0.00057534,120]
[312508957,1705935340002,-544.42878238,0.00057534,120]
[312508958,1705935340035,-500.0,0.00057534,120]
[312508959,1705935340068,-1607.72,0.00057534,120]
[312508960,1705935340102,-1788.51,0.00057534,120]
[312508961,1705935340137,-500.0,0.00057534,120]
[312508962,1705935340172,-669.85,0.00057534,120]
[312508963,1705935340206,-744.04,0.00057534,120]
[312508964,1705935340240,-500.0,0.00057534,120]
[312508965,1705935340275,-645.14,0.00057534,120]
[312508966,1705935340309,-608.8,0.00057534,120]
[312508967,1705935340342,-702.16,0.00057534,120]
[312508968,1705935340380,-559.87,0.00057534,120]
[312508969,1705935340418,-500.0,0.00057534,120]
[312508970,1705935340455,-1326.85,0.00057534,120]
[312508971,1705935340489,-1404.36,0.00057534,120]
[312508972,1705935340526,-1490.02,0.00057534,120]
[312508973,1705935340559,-500.0,0.00057534,120]
[312508974,1705935340591,-500.0,0.00057534,120]
[312508975,1705935340626,-1273.58,0.00057534,120]
[312508976,1705935340660,-500.0,0.00057534,120]
[312508977,1705935340693,-1577.88,0.00057534,120]
[312508978,1705935340726,-850.44,0.00057534,120]
[312508979,1705935340762,-500.0,0.00057534,120]
[312508980,1705935340795,-665.34,0.00057534,120]
[312508981,1705935340829,-500.0,0.00057534,120]
[312508982,1705935340864,-836.88,0.00057534,120]
[312508983,1705935340899,-500.0,0.00057534,120]
[312508984,1705935340934,-1144.66,0.00057534,120]
[312508985,1705935340968,-500.0,0.00057534,120]
[312508986,1705935341004,-500.0,0.00057534,120]
[312508987,1705935341041,-649.5,0.00057534,120]
[312508988,1705935341075,-1273.46,0.00057534,120]
[312508989,1705935341108,-500.0,0.00057534,120]
[312508990,1705935341142,-1047.97,0.00057534,120]
[312508991,1705935341176,-500.0,0.00057534,120]
[312508992,1705935341212,-500.0,0.00057534,120]
[312508993,1705935341249,-600.2,0.00057534,120]
[312508994,1705935341284,-754.61,0.00057534,120]
[312508995,1705935341319,-500.0,0.00057534,120]
[312508996,1705935341353,-852.62,0.00057534,120]
[312508997,1705935341392,-468.98535748,0.00057534,120]
[312508998,1705935341432,-1099.97,0.00057534,120]
[312508999,1705935341470,-500.0,0.00057534,120]
[312509000,1705935341508,-836.94,0.00057534,120]
[312509001,1705935341544,-857.36,0.00057534,120]
[312509002,1705935341583,-500.0,0.00057534,120]
[312509003,1705935341620,-597.17,0.00057534,120]
[312509004,1705935341655,-1527.68,0.00057534,120]
[312509005,1705935341692,-806.43,0.00057534,120]
[312509006,1705935341735,-2110.23,0.00057534,120]
[312509007,1705935341775,-183.27705033,0.00057534,120]
[312509008,1705935341816,-500.0,0.00057534,120]
[312509009,1705935341854,-552.99,0.00057534,120]
[312509010,1705935341888,-1034.47,0.00057534,120]
[312509011,1705935341923,-1707.75,0.00057534,120]
[312509012,1705935341957,-1844.2,0.00057534,120]
[312509013,1705935341992,-666.0,0.00057534,120]
[312509014,1705935342027,-274.77829772,0.00057534,120]
[312509015,1705935342061,-1129.13,0.00057534,120]
[312509016,1705935342093,-599.85,0.00057534,120]
[312509017,1705935342126,-500.0,0.00057534,120]
[312509018,1705935342159,-932.99,0.00057534,120]
[312509019,1705935342376,-2637.9,0.00057534,120]
[312509020,1705935342409,-1394.47,0.00057534,120]
[312509021,1705935342440,-500.0,0.00057534,120]
[312509022,1705935342472,-756.66,0.00057534,120]
[312509023,1705935342508,-500.0,0.00057534,120]
[312509024,1705935342543,-591.22,0.00057534,120]
[312509025,1705935342575,-1651.7,0.00057534,120]
[312509026,1705935342608,-970.35,0.00057534,120]
[312509027,1705935342642,-506.16,0.00057534,120]
[312509028,1705935342675,-500.0,0.00057534,120]
[312509029,1705935342709,-920.91,0.00057534,120]
[312509030,1705935342740,-752.54,0.00057534,120]
[312509031,1705935342771,-653.54,0.00057534,120]
[312509032,1705935342801,-500.0,0.00057534,120]
[312509033,1705935342833,-1751.16,0.00057534,120]
[312509034,1705935342864,-652.01,0.00057534,120]
[312509035,1705935342895,-631.92,0.00057534,120]
[312509036,1705935342928,-650.78,0.00057534,120]
[312509037,1705935342961,-752.76,0.00057534,120]
[312509038,1705935342994,-500.0,0.00057534,120]
[312509039,1705935343027,-2270.34,0.00057534,120]
[312509040,1705935343060,-1786.0,0.00057534,120]
[312509041,1705935343092,-500.0,0.00057534,120]
[312509042,1705935343125,-1361.82,0.00057534,120]
[312509043,1705935343158,-3797.03,0.00057534,120]
[312509044,1705935343190,-1781.02,0.00057534,120]
[312509045,1705935343223,-1364.57,0.00057534,120]
[312509046,1705935343259,-1756.9,0.00057534,120]
[312509047,1705935343293,-790.71,0.00057534,120]
[312509048,1705935343325,-598.0,0.00057534,120]
[312509049,1705935343356,-609.8,0.00057534,120]
[312509050,1705935343390,-543.53,0.00057534,120]
[312509051,1705935343421,-761.51,0.00057534,120]
[312509052,1705935343455,-1909.96,0.00057534,120]
[312509053,1705935343489,-1240.73,0.00057534,120]
[312509054,1705935343522,-12125.73,0.00057534,120]
[312509055,1705935343555,-500.0,0.00057534,120]
[312509056,1705935343587,-2651.29,0.00057534,120]
[312509057,1705935343620,-1183.91,0.00057534,120]
[312509058,1705935343654,-1284.7,0.00057534,120]
[312509059,1705935343689,-500.0,0.00057534,120]
[312509060,1705935343723,-5137.25,0.00057534,120]
[312509061,1705935343758,-593.41570787,0.00057534,120]
[312509062,1705935343792,-1103.44,0.00057534,120]
[312509063,1705935343825,-500.0,0.00057534,120]
[312509064,1705935343857,-500.0,0.00057534,120]
[312509065,1705935343891,-500.0,0.00057534,120]
[312509066,1705935343924,-500.0,0.00057534,120]
[312509067,1705935343956,-2169.34,0.00057534,120]
[312509068,1705935343989,-12713.95,0.00057534,120]
[312509069,1705935344022,-1882.98,0.00057534,120]
[312509070,1705935344058,-967.39,0.00057534,120]
[312509071,1705935344091,-1657.15,0.00057534,120]
[312509072,1705935344132,-943.25,0.00057534,120]
[312509073,1705935344165,-500.0,0.00057534,120]
[312509074,1705935344199,-1729.69,0.00057534,120]
[312509075,1705935344237,-500.0,0.00057534,120]
[312509076,1705935344269,-569.65,0.00057534,120]
[312509077,1705935344300,-606.66,0.00057534,120]
[312509078,1705935344332,-2125.62,0.00057534,120]
[312509079,1705935344363,-1419.55,0.00057534,120]
[312509080,1705935344395,-1689.91,0.00057534,120]
[312509081,1705935344427,-1565.88,0.00057534,120]
[312509082,1705935344460,-689.11,0.00057534,120]
[312509083,1705935344490,-1921.07,0.00057534,120]
[312509084,1705935344521,-2015.32,0.00057534,120]
[312509085,1705935344553,-700.71,0.00057534,120]
[312509086,1705935344584,-500.0,0.00057534,120]
[312509087,1705935344615,-1539.91,0.00057534,120]
[312509088,1705935344646,-1927.03,0.00057534,120]
[312509089,1705935344677,-1314.85,0.00057534,120]
[312509090,1705935344709,-1686.46,0.00057534,120]
[312509091,1705935344741,-500.0,0.00057534,120]
[312509092,1705935344771,-677.55,0.00057534,120]
[312509093,1705935344803,-1985.74,0.00057534,120]
[312509094,1705935344835,-471.55436789,0.00057534,120]
[312509095,1705935344866,-550.06,0.00057534,120]
[312509096,1705935344897,-712.03,0.00057534,120]
[312509097,1705935344929,-736.61,0.00057534,120]
[312509098,1705935344963,-4762.26,0.00057534,120]
[312509099,1705935344998,-2461.8,0.00057534,120]
[312509100,1705935345033,-1880.63,0.00057534,120]
[312509101,1705935345070,-1259.3,0.00057534,120]
[312509102,1705935345106,-1557.26,0.00057534,120]
[312509103,1705935345144,-793.99,0.00057534,120]
[312509104,1705935345181,-1379.69,0.00057534,120]
[312509105,1705935345221,-500.0,0.00057534,120]
[312509106,1705935345261,-2604.87,0.00057534,120]
[312509107,1705935345294,-932.81,0.00057534,120]
[312509108,1705935345327,-500.0,0.00057534,120]
[312509109,1705935345361,-500.0,0.00057534,120]